[Event "Championnat de France Universitaire 2022"]
[Site "Limoges, France"]
[Date "2022.02.05"]
[Round "6.5"]
[White "Marchais, Antoine"]
[Black "Profili, Emilio"]
[Result "0-1"]
[TimeControl "15'+5''"]
[WhiteElo "1981"]
[BlackElo "2097"]

1. e4 {[%clk 00:15:08]} {[%emt 00:00:02]} e6 {[%clk 00:15:09]} 2. d4 {[%clk
00:15:12]} {[%emt 00:00:01]} d5 {[%clk 00:15:13]} 3. e5 {[%clk 00:15:16]}
{[%emt 00:00:02]} c5 {[%clk 00:15:17]} 4. Nf3 {[%clk 00:15:20]} Nc6 {[%clk
00:15:14]} {[%emt 00:00:09]} 5. Bd3 {[%clk 00:15:24]} {[%emt 00:00:01]} Bd7
{[%clk 00:14:12]} {[%emt 00:01:07]} 6. O-O {[%clk 00:15:26]} {[%emt 00:00:03]}
Rc8 {[%clk 00:13:06]} {[%emt 00:01:11]} 7. a3 {[%clk 00:15:27]} {[%emt
00:00:04]} cxd4 {[%clk 00:12:49]} {[%emt 00:00:22]} 8. b4 {[%clk 00:15:13]}
{[%emt 00:00:19]} f6 {[%clk 00:12:47]} {[%emt 00:00:07]} 9. Qe2 {[%clk
00:14:34]} {[%emt 00:00:44]} fxe5 {[%clk 00:12:36]} {[%emt 00:00:16]} 10. Nxe5
{[%clk 00:14:36]} {[%emt 00:00:03]} Nxe5 {[%clk 00:12:38]} {[%emt 00:00:03]} 11.
Qxe5 {[%clk 00:14:39]} {[%emt 00:00:02]} Qf6 {[%clk 00:12:32]} {[%emt
00:00:11]} 12. Qg3 {[%clk 00:13:53]} {[%emt 00:00:51]} Nh6 {[%clk 00:11:09]}
{[%emt 00:01:28]} 13. Bg5 {[%clk 00:12:14]} {[%emt 00:01:44]} Qf7 {[%clk
00:11:13]} {[%emt 00:00:02]} 14. Qe5 {[%clk 00:10:02]} {[%emt 00:02:17]} Ng4
{[%clk 00:09:15]} {[%emt 00:02:03]} 15. Qxd4 {[%clk 00:09:27]} {[%emt
00:00:40]} Qh5 {[%clk 00:08:58]} {[%emt 00:00:22]} 16. Bf4 {[%clk 00:08:40]}
{[%emt 00:00:52]} Be7 {[%clk 00:06:37]} {[%emt 00:02:26]} 17. Qxa7 {[%clk
00:03:28]} {[%emt 00:05:17]} O-O {[%clk 00:06:23]} {[%emt 00:00:19]} 18. Bg3
{[%clk 00:03:29]} {[%emt 00:00:04]} Bf6 {[%clk 00:05:52]} {[%emt 00:00:37]} 19.
Ra2 {[%clk 00:03:25]} {[%emt 00:00:08]} Be5 {[%clk 00:05:37]} {[%emt 00:00:20]}
20. h3 {[%clk 00:03:28]} {[%emt 00:00:02]} Bxg3 {[%clk 00:04:55]} {[%emt
00:00:48]} 21. fxg3 {[%clk 00:03:32]} {[%emt 00:00:01]} Ne5 {[%clk 00:04:37]}
{[%emt 00:00:22]} 22. Qe3 {[%clk 00:02:53]} {[%emt 00:00:44]} Rxf1+ {[%clk
00:03:27]} {[%emt 00:01:15]} 23. Bxf1 {[%clk 00:02:57]} {[%emt 00:00:01]} Rf8
{[%clk 00:03:18]} {[%emt 00:00:13]} 24. Be2 {[%clk 00:02:35]} {[%emt 00:00:28]}
Qf5 {[%clk 00:02:15]} {[%emt 00:01:08]} 25. Nd2 {[%clk 00:02:32]} {[%emt
00:00:08]} Ba4 {[%clk 00:02:06]} {[%emt 00:00:13]} 26. g4 {[%clk 00:02:03]}
{[%emt 00:00:34]} Qf6 {[%clk 00:02:03]} {[%emt 00:00:08]} 27. c4 {[%clk
00:01:50]} {[%emt 00:00:18]} Rd8 {[%clk 00:01:42]} {[%emt 00:00:25]} 28. cxd5
{[%clk 00:01:47]} {[%emt 00:00:08]} exd5 {[%clk 00:01:46]} {[%emt 00:00:01]} 29.
Nf3 {[%clk 00:01:24]} {[%emt 00:00:28]} Re8 {[%clk 00:01:36]} {[%emt 00:00:15]}
30. Nxe5 {[%clk 00:00:44]} {[%emt 00:00:45]} Rxe5 {[%clk 00:01:40]} {[%emt
00:00:01]} 31. Qf3 {[%clk 00:00:48]} Qe7 {[%clk 00:01:40]} {[%emt 00:00:04]} 32.
Bd3 {[%clk 00:00:45]} {[%emt 00:00:08]} g6 {[%clk 00:01:28]} {[%emt 00:00:17]}
33. Re2 {[%clk 00:00:41]} {[%emt 00:00:09]} Be8 {[%clk 00:01:15]} {[%emt
00:00:19]} 34. Kh2 {[%clk 00:00:17]} {[%emt 00:00:30]} Bf7 {[%clk 00:01:14]}
{[%emt 00:00:06]} 35. g3 {[%clk 00:00:21]} {[%emt 00:00:01]} Kg7 {[%clk
00:01:13]} {[%emt 00:00:06]} 36. Rxe5 {[%clk 00:00:23]} {[%emt 00:00:03]} Qxe5
{[%clk 00:01:17]} 37. Qe2 {[%clk 00:00:27]} Qc3 {[%clk 00:01:16]} {[%emt
00:00:06]} 38. h4 {[%clk 00:00:22]} {[%emt 00:00:11]} Kg8 {[%clk 00:01:19]}
{[%emt 00:00:01]} 39. h5 {[%clk 00:00:23]} {[%emt 00:00:04]} Qxa3 {[%clk
00:00:56]} {[%emt 00:00:28]} 40. hxg6 {[%clk 00:00:26]} {[%emt 00:00:01]} hxg6
{[%clk 00:01:00]} {[%emt 00:00:02]} 41. Qc2 {[%clk 00:00:26]} {[%emt 00:00:05]}
Kg7 {[%clk 00:00:59]} {[%emt 00:00:07]} 42. b5 {[%clk 00:00:23]} {[%emt
00:00:08]} Qb4 {[%clk 00:00:59]} {[%emt 00:00:05]} 43. Qe2 {[%clk 00:00:21]}
{[%emt 00:00:07]} Qd4 {[%clk 00:00:59]} {[%emt 00:00:05]} 44. Kh3 {[%clk
00:00:16]} {[%emt 00:00:11]} Qa1 {[%clk 00:00:53]} {[%emt 00:00:11]} 45. Kh2
{[%clk 00:00:17]} {[%emt 00:00:04]} b6 {[%clk 00:00:56]} {[%emt 00:00:02]} 46.
Qe3 {[%clk 00:00:16]} {[%emt 00:00:05]} Qb2+ {[%clk 00:00:58]} {[%emt
00:00:03]} 47. Kh3 {[%clk 00:00:19]} {[%emt 00:00:03]} Qa1 {[%clk 00:00:59]}
{[%emt 00:00:04]} 48. Kh2 {[%clk 00:00:20]} {[%emt 00:00:03]} Qf6 {[%clk
00:01:03]} {[%emt 00:00:02]} 49. g5 {[%clk 00:00:15]} {[%emt 00:00:10]} Qd6
{[%clk 00:00:56]} {[%emt 00:00:12]} 50. Qd4+ {[%clk 00:00:19]} Kg8 {[%clk
00:01:00]} {[%emt 00:00:01]} 51. Qf6 {[%clk 00:00:17]} {[%emt 00:00:08]} Qxf6
{[%clk 00:00:12]} {[%emt 00:00:53]} 52. gxf6 {[%clk 00:00:21]} Be8 {[%clk
00:00:16]} {[%emt 00:00:01]} 53. g4 {[%clk 00:00:25]} {[%emt 00:00:01]} g5
{[%clk 00:00:20]} 54. Kg3 {[%clk 00:00:17]} {[%emt 00:00:13]} Kf7 {[%clk
00:00:24]} 55. Kf3 {[%clk 00:00:21]} Kxf6 {[%clk 00:00:28]} {[%emt 00:00:01]}
56. Ke3 {[%clk 00:00:25]} {[%emt 00:00:02]} Ke5 {[%clk 00:00:32]} {[%emt
00:00:01]} 0-1

[ePGN "0.1;DGT LiveChess/2.2.5"]

[Event "Championnat de France Universitaire 2022"]
[Site "Limoges, France"]
[Date "2022.02.06"]
[Round "7.2"]
[White "Gatineau, Yovann"]
[Black "Derige Kane, Yan"]
[Result "1-0"]
[TimeControl "15'+5''"]
[WhiteElo "2384"]
[BlackElo "2148"]

1. d4 {[%clk 00:14:50]} {[%emt 00:00:18]} d5 {[%clk 00:14:50]} {[%emt
00:00:21]} 2. c4 {[%clk 00:14:54]} {[%emt 00:00:01]} e6 {[%clk 00:14:54]} 3.
Nf3 {[%clk 00:14:58]} a6 {[%emt 00:00:02]} 4. Nbd2 {[%clk 00:14:40]} {[%emt
00:00:23]} c5 {[%clk 00:14:52]} {[%emt 00:00:11]} 5. cxd5 {[%clk 00:14:40]}
{[%emt 00:00:05]} cxd4 {[%clk 00:14:30]} {[%emt 00:00:27]} 6. dxe6 {[%clk
00:12:19]} {[%emt 00:02:26]} Bxe6 {[%clk 00:14:33]} {[%emt 00:00:02]} 7. Nb3
{[%clk 00:12:23]} Bb4+ {[%clk 00:14:21]} {[%emt 00:00:17]} 8. Bd2 {[%clk
00:12:26]} {[%emt 00:00:02]} Bxd2+ {[%clk 00:14:24]} {[%emt 00:00:02]} 9. Qxd2
{[%clk 00:12:23]} {[%emt 00:00:08]} Bxb3 10. axb3 {[%clk 00:12:26]} Nc6 {[%clk
00:14:32]} 11. Rd1 {[%clk 00:11:29]} {[%emt 00:01:03]} Nf6 {[%clk 00:12:33]}
{[%emt 00:02:04]} 12. g3 {[%clk 00:07:15]} {[%emt 00:04:19]} O-O {[%clk
00:09:07]} {[%emt 00:03:31]} 13. Bh3 {[%clk 00:06:56]} {[%emt 00:00:24]} Qb6
{[%clk 00:07:59]} {[%emt 00:01:13]} 14. O-O {[%clk 00:06:32]} {[%emt 00:00:29]}
Rad8 {[%clk 00:08:02]} {[%emt 00:00:01]} 15. Qd3 {[%clk 00:05:18]} {[%emt
00:01:19]} Rfe8 {[%clk 00:07:28]} {[%emt 00:00:39]} 16. Rfe1 {[%clk 00:05:15]}
{[%emt 00:00:08]} h6 {[%clk 00:07:31]} {[%emt 00:00:02]} 17. Rc1 {[%clk
00:03:25]} {[%emt 00:01:56]} Ne4 {[%clk 00:05:40]} {[%emt 00:01:56]} 18. Nh4
{[%clk 00:01:40]} {[%emt 00:01:50]} Ng5 {[%clk 00:01:44]} {[%emt 00:04:00]} 19.
Bg2 {[%clk 00:01:38]} {[%emt 00:00:07]} Ne5 {[%clk 00:01:49]} {[%emt 00:00:01]}
20. Qd1 {[%clk 00:01:15]} {[%emt 00:00:29]} d3 {[%clk 00:01:31]} {[%emt
00:00:23]} 21. exd3 {[%clk 00:01:08]} {[%emt 00:00:11]} Rxd3 {[%clk 00:00:35]}
{[%emt 00:01:02]} 22. Qc2 {[%clk 00:00:45]} {[%emt 00:00:27]} Rxb3 {[%clk
00:00:22]} {[%emt 00:00:18]} 23. Kh1 {[%clk 00:00:18]} {[%emt 00:00:32]} Rxb2
{[%clk 00:00:07]} {[%emt 00:00:21]} 24. Qa4 {[%clk 00:00:22]} {[%emt 00:00:01]}
Qb5 {[%clk 00:00:09]} {[%emt 00:00:03]} 25. Qd4 {[%clk 00:00:25]} {[%emt
00:00:02]} f6 {[%clk 00:00:11]} {[%emt 00:00:04]} 26. f4 {[%clk 00:00:29]} Ne6
{[%clk 00:00:13]} {[%emt 00:00:03]} 27. Bd5 {[%clk 00:00:17]} {[%emt 00:00:17]}
Ng4 {[%clk 00:00:07]} {[%emt 00:00:11]} 28. Rxe6 {[%clk 00:00:14]} {[%emt
00:00:08]} Rxh2+ {[%clk 00:00:09]} {[%emt 00:00:03]} 29. Kg1 {[%clk 00:00:18]}
{[%emt 00:00:01]} Rxe6 {[%clk 00:00:07]} {[%emt 00:00:08]} 30. Bxe6+ {[%clk
00:00:22]} Kh7 {[%clk 00:00:09]} {[%emt 00:00:03]} 31. Bf5+ {[%clk 00:00:23]}
{[%emt 00:00:03]} Kg8 {[%clk 00:00:06]} {[%emt 00:00:08]} 32. Qd8+ {[%clk
00:00:27]} Kf7 {[%clk 00:00:10]} {[%emt 00:00:01]} 33. Rc7+ {[%clk 00:00:31]}
1-0

[Event "Championnat de France Universitaire 2022"]
[Site "Limoges, France"]
[Date "2022.02.06"]
[Round "7.3"]
[White "Profili, Emilio"]
[Black "Albaric, Etienne"]
[Result "1-0"]
[TimeControl "15'+5''"]
[WhiteElo "2097"]
[BlackElo "2235"]

1. e4 {[%clk 00:15:08]} {[%emt 00:00:02]} e5 {[%clk 00:15:08]} {[%emt
00:00:03]} 2. Nf3 {[%clk 00:15:10]} {[%emt 00:00:02]} Nc6 {[%clk 00:15:12]}
{[%emt 00:00:02]} 3. Bc4 {[%clk 00:15:06]} {[%emt 00:00:10]} Bc5 {[%clk
00:15:13]} {[%emt 00:00:03]} 4. c3 {[%clk 00:15:06]} {[%emt 00:00:04]} Nf6
{[%clk 00:15:16]} {[%emt 00:00:02]} 5. d3 {[%clk 00:15:08]} {[%emt 00:00:03]}
d6 {[%clk 00:15:11]} {[%emt 00:00:10]} 6. Bb3 {[%clk 00:14:57]} {[%emt
00:00:17]} a6 {[%clk 00:14:57]} {[%emt 00:00:19]} 7. h3 {[%clk 00:14:54]}
{[%emt 00:00:08]} h6 {[%clk 00:14:46]} {[%emt 00:00:16]} 8. Nbd2 {[%clk
00:14:25]} {[%emt 00:00:34]} Ba7 {[%clk 00:14:19]} {[%emt 00:00:32]} 9. Nf1
{[%clk 00:14:22]} {[%emt 00:00:08]} Be6 {[%clk 00:14:20]} {[%emt 00:00:04]} 10.
Be3 {[%clk 00:13:25]} {[%emt 00:01:02]} d5 {[%clk 00:13:51]} {[%emt 00:00:35]}
11. Bxa7 {[%clk 00:13:02]} {[%emt 00:00:28]} Rxa7 {[%clk 00:13:54]} {[%emt
00:00:02]} 12. Ng3 {[%clk 00:12:29]} {[%emt 00:00:37]} O-O {[%clk 00:12:48]}
{[%emt 00:01:12]} 13. O-O {[%clk 00:12:00]} {[%emt 00:00:34]} Re8 {[%clk
00:11:56]} {[%emt 00:00:57]} 14. Re1 {[%clk 00:09:37]} {[%emt 00:02:28]} Ra8
{[%clk 00:10:07]} {[%emt 00:01:54]} 15. Qe2 {[%clk 00:07:42]} {[%emt 00:02:00]}
b5 {[%clk 00:08:05]} {[%emt 00:02:07]} 16. Nh4 {[%clk 00:06:32]} {[%emt
00:01:14]} d4 {[%clk 00:05:42]} {[%emt 00:02:28]} 17. Nhf5 {[%clk 00:06:15]}
{[%emt 00:00:22]} Bxf5 {[%clk 00:05:17]} {[%emt 00:00:30]} 18. Nxf5 {[%clk
00:06:17]} {[%emt 00:00:04]} Ne7 {[%clk 00:04:41]} {[%emt 00:00:41]} 19. Ng3
{[%clk 00:03:50]} {[%emt 00:02:32]} c5 {[%clk 00:03:26]} {[%emt 00:01:20]} 20.
Rf1 {[%clk 00:03:26]} {[%emt 00:00:29]} Qd6 {[%clk 00:02:07]} {[%emt 00:01:25]}
21. f4 {[%clk 00:02:33]} {[%emt 00:00:57]} Rad8 {[%clk 00:02:11]} {[%emt
00:00:01]} 22. Nh5 {[%clk 00:01:59]} {[%emt 00:00:39]} c4 {[%emt 00:01:36]} 23.
dxc4 {[%clk 00:01:23]} {[%emt 00:00:41]} d3 {[%clk 00:00:42]} {[%emt 00:00:05]}
24. Qf3 {[%clk 00:01:15]} {[%emt 00:00:12]} Nxh5 {[%clk 00:00:29]} {[%emt
00:00:18]} 25. Qxh5 {[%clk 00:01:14]} {[%emt 00:00:06]} bxc4 {[%clk 00:00:29]}
{[%emt 00:00:06]} 26. Ba4 {[%clk 00:01:15]} {[%emt 00:00:03]} Rf8 {[%clk
00:00:29]} {[%emt 00:00:05]} 27. fxe5 {[%clk 00:01:16]} {[%emt 00:00:04]} Qb6+
{[%clk 00:00:28]} {[%emt 00:00:06]} 28. Rf2 {[%clk 00:01:16]} {[%emt 00:00:05]}
d2 {[%clk 00:00:25]} {[%emt 00:00:09]} 29. Raf1 {[%clk 00:01:13]} {[%emt
00:00:07]} Qg6 {[%clk 00:00:18]} {[%emt 00:00:13]} 30. Qf3 {[%clk 00:00:58]}
{[%emt 00:00:20]} Rd3 {[%clk 00:00:18]} {[%emt 00:00:04]} 31. Qf4 {[%clk
00:00:55]} {[%emt 00:00:08]} Qg5 {[%clk 00:00:12]} {[%emt 00:00:12]} 32. Qxg5
{[%clk 00:00:36]} {[%emt 00:00:24]} hxg5 {[%clk 00:00:17]} 33. Bc2 {[%clk
00:00:37]} {[%emt 00:00:04]} Rdd8 {[%clk 00:00:08]} {[%emt 00:00:14]} 34. Rd1
{[%clk 00:00:40]} {[%emt 00:00:01]} Ng6 {[%clk 00:00:12]} {[%emt 00:00:01]} 35.
Rfxd2 {[%clk 00:00:42]} {[%emt 00:00:03]} Rxd2 {[%clk 00:00:16]} {[%emt
00:00:01]} 36. Rxd2 {[%clk 00:00:46]} {[%emt 00:00:01]} Nxe5 {[%clk 00:00:18]}
{[%emt 00:00:03]} 37. Rd5 {[%clk 00:00:50]} f6 {[%clk 00:00:18]} {[%emt
00:00:06]} 38. Ra5 {[%clk 00:00:44]} {[%emt 00:00:11]} Rb8 {[%clk 00:00:20]}
{[%emt 00:00:03]} 39. b3 {[%clk 00:00:48]} Rd8 {[%clk 00:00:18]} {[%emt
00:00:07]} 40. bxc4 {[%clk 00:00:48]} {[%emt 00:00:06]} Kh7 {[%clk 00:00:13]}
{[%emt 00:00:10]} 41. Rxa6 {[%clk 00:00:48]} {[%emt 00:00:05]} Rd2 {[%clk
00:00:12]} {[%emt 00:00:06]} 42. Bb3 {[%clk 00:00:41]} {[%emt 00:00:13]} Nd3
{[%clk 00:00:16]} {[%emt 00:00:01]} 43. Rd6 {[%clk 00:00:39]} {[%emt 00:00:07]}
Kg8 {[%clk 00:00:09]} {[%emt 00:00:12]} 44. c5+ {[%clk 00:00:42]} {[%emt
00:00:01]} Kf8 {[%clk 00:00:14]} 45. Bc4 {[%clk 00:00:42]} {[%emt 00:00:05]}
Rd1+ {[%clk 00:00:17]} {[%emt 00:00:02]} 46. Kh2 {[%clk 00:00:46]} Nb2 {[%clk
00:00:16]} {[%emt 00:00:06]} 47. Rxd1 {[%clk 00:00:47]} {[%emt 00:00:04]} Nxd1
{[%clk 00:00:20]} 48. Kg3 {[%clk 00:00:36]} {[%emt 00:00:16]} Nxc3 {[%clk
00:00:24]} {[%emt 00:00:01]} 49. Bd5 {[%clk 00:00:40]} Ke7 {[%clk 00:00:24]}
{[%emt 00:00:05]} 50. Kf3 {[%clk 00:00:43]} Na4 {[%clk 00:00:21]} {[%emt
00:00:08]} 51. c6 {[%clk 00:00:43]} {[%emt 00:00:05]} Kd6 {[%clk 00:00:26]} 52.
Ke3 {[%clk 00:00:47]} {[%emt 00:00:01]} Nc3 {[%clk 00:00:20]} {[%emt 00:00:11]}
53. Kd3 {[%clk 00:00:45]} {[%emt 00:00:07]} Na4 {[%clk 00:00:17]} {[%emt
00:00:09]} 54. Kc4 {[%clk 00:00:42]} {[%emt 00:00:07]} Nb2+ {[%clk 00:00:17]}
{[%emt 00:00:05]} 55. Kb5 {[%clk 00:00:46]} Kc7 {[%clk 00:00:11]} {[%emt
00:00:12]} 56. a4 {[%clk 00:00:44]} {[%emt 00:00:07]} Nd1 {[%clk 00:00:14]}
{[%emt 00:00:02]} 57. a5 {[%clk 00:00:42]} {[%emt 00:00:08]} Nc3+ {[%clk
00:00:12]} {[%emt 00:00:07]} 58. Kc4 {[%clk 00:00:43]} {[%emt 00:00:03]} Nd1
{[%clk 00:00:14]} {[%emt 00:00:02]} 59. Kc5 {[%clk 00:00:47]} {[%emt 00:00:02]}
Ne3 {[%clk 00:00:18]} {[%emt 00:00:01]} 60. a6 {[%clk 00:00:51]} {[%emt
00:00:01]} Kb8 {[%emt 00:00:02]} 61. Kb6 {[%clk 00:00:53]} {[%emt 00:00:02]}
1-0

[Event "Championnat de France Universitaire 2022"]
[Site "Limoges, France"]
[Date "2022.02.06"]
[Round "7.5"]
[White "Bosc, Gabriel"]
[Black "Aghamir Alrobiai, Nizar"]
[Result "1/2-1/2"]
[TimeControl "15'+5''"]
[WhiteElo "2050"]
[BlackElo "2118"]

1. e4 {[%clk 00:15:08]} {[%emt 00:00:02]} e6 {[%clk 00:15:09]} {[%emt
00:00:03]} 2. Nf3 {[%clk 00:15:08]} {[%emt 00:00:03]} c5 {[%clk 00:15:12]}
{[%emt 00:00:04]} 3. d4 {[%clk 00:15:04]} {[%emt 00:00:08]} cxd4 {[%clk
00:15:15]} {[%emt 00:00:02]} 4. Nxd4 {[%clk 00:15:08]} {[%emt 00:00:02]} Nc6
{[%clk 00:15:18]} {[%emt 00:00:02]} 5. Be3 {[%clk 00:14:52]} {[%emt 00:00:20]}
Qc7 {[%clk 00:15:15]} {[%emt 00:00:09]} 6. Nc3 {[%clk 00:14:22]} {[%emt
00:00:35]} a6 {[%clk 00:15:19]} {[%emt 00:00:01]} 7. f4 {[%clk 00:13:30]}
{[%emt 00:00:56]} b5 {[%clk 00:14:08]} {[%emt 00:01:16]} 8. Qf3 {[%clk
00:12:07]} {[%emt 00:01:28]} Bb7 {[%clk 00:13:59]} {[%emt 00:00:15]} 9. Bd3
{[%clk 00:11:39]} {[%emt 00:00:33]} Rc8 {[%clk 00:13:47]} {[%emt 00:00:17]} 10.
O-O {[%clk 00:11:29]} {[%emt 00:00:15]} Nxd4 {[%clk 00:13:49]} {[%emt
00:00:03]} 11. Bxd4 {[%clk 00:11:32]} {[%emt 00:00:02]} Bc5 {[%clk 00:13:53]}
{[%emt 00:00:01]} 12. Bxc5 {[%clk 00:11:16]} {[%emt 00:00:21]} Qxc5+ {[%clk
00:13:57]} {[%emt 00:00:01]} 13. Kh1 {[%clk 00:11:19]} {[%emt 00:00:03]} Ne7
{[%clk 00:10:51]} {[%emt 00:03:11]} 14. Qg3 {[%clk 00:11:12]} {[%emt 00:00:13]}
O-O {[%clk 00:09:46]} {[%emt 00:01:10]} 15. e5 {[%clk 00:09:41]} {[%emt
00:01:35]} f5 {[%clk 00:08:43]} {[%emt 00:01:08]} 16. Qf2 {[%clk 00:06:22]}
{[%emt 00:03:24]} Nd5 {[%clk 00:07:02]} {[%emt 00:01:46]} 17. Qxc5 {[%clk
00:04:52]} {[%emt 00:01:35]} Rxc5 {[%clk 00:07:05]} {[%emt 00:00:02]} 18. Nxd5
{[%clk 00:04:54]} {[%emt 00:00:03]} Bxd5 {[%clk 00:07:08]} {[%emt 00:00:03]} 19.
Rfd1 {[%clk 00:03:35]} {[%emt 00:01:23]} Rfc8 {[%clk 00:07:06]} {[%emt
00:00:08]} 20. c3 {[%clk 00:03:25]} {[%emt 00:00:15]} h6 {[%clk 00:06:43]}
{[%emt 00:00:28]} 21. Kg1 {[%clk 00:03:29]} {[%emt 00:00:02]} g5 {[%clk
00:06:40]} {[%emt 00:00:08]} 22. g3 {[%clk 00:03:33]} {[%emt 00:00:01]} Kf7
{[%clk 00:06:43]} {[%emt 00:00:01]} 23. Kf2 {[%clk 00:03:37]} g4 {[%clk
00:06:32]} {[%emt 00:00:17]} 24. Rd2 {[%clk 00:03:03]} {[%emt 00:00:38]} h5
{[%clk 00:06:34]} {[%emt 00:00:02]} 25. a4 {[%clk 00:02:23]} {[%emt 00:00:46]}
Rh8 {[%clk 00:05:31]} {[%emt 00:01:07]} 26. axb5 {[%clk 00:02:19]} {[%emt
00:00:09]} axb5 {[%clk 00:05:26]} {[%emt 00:00:11]} 27. Ke3 {[%clk 00:01:22]}
{[%emt 00:01:02]} b4 {[%clk 00:04:00]} {[%emt 00:01:31]} 28. cxb4 {[%clk
00:01:17]} {[%emt 00:00:10]} Rc7 {[%clk 00:04:04]} {[%emt 00:00:01]} 29. Bxf5
{[%clk 00:01:11]} {[%emt 00:00:11]} Rb8 {[%clk 00:03:49]} {[%emt 00:00:20]} 30.
Be4 {[%clk 00:00:10]} {[%emt 00:01:06]} Bxe4 {[%clk 00:03:33]} {[%emt
00:00:20]} 31. Kxe4 {[%clk 00:00:14]} {[%emt 00:00:01]} Rxb4+ {[%clk 00:03:37]}
32. Ke3 {[%clk 00:00:19]} Rb3+ {[%clk 00:03:15]} {[%emt 00:00:27]} 33. Ke2
{[%clk 00:00:23]} Rcb7 {[%clk 00:03:19]} {[%emt 00:00:01]} 34. Ra2 {[%clk
00:00:08]} {[%emt 00:00:20]} Kg6 {[%clk 00:03:21]} {[%emt 00:00:03]} 35. Kd1
{[%clk 00:00:07]} {[%emt 00:00:06]} Kf5 {[%clk 00:03:19]} {[%emt 00:00:07]} 36.
Ke2 {[%clk 00:00:12]} {[%emt 00:00:01]} h4 {[%clk 00:03:11]} {[%emt 00:00:13]}
37. Ra3 {[%clk 00:00:06]} {[%emt 00:00:11]} hxg3 {[%clk 00:01:48]} {[%emt
00:01:27]} 38. hxg3 {[%clk 00:00:11]} Rxb2 {[%clk 00:01:44]} {[%emt 00:00:09]}
39. Rad3 {[%clk 00:00:11]} {[%emt 00:00:05]} R2b3 {[%clk 00:00:55]} {[%emt
00:00:54]} 40. Kf2 {[%clk 00:00:11]} {[%emt 00:00:05]} Rxd3 {[%clk 00:00:57]}
{[%emt 00:00:03]} 41. Rxd3 {[%clk 00:00:14]} {[%emt 00:00:02]} Rb2+ {[%clk
00:01:01]} 42. Ke3 {[%clk 00:00:11]} {[%emt 00:00:09]} Rg2 {[%clk 00:01:04]}
{[%emt 00:00:01]} 43. Kd4 {[%clk 00:00:14]} {[%emt 00:00:02]} Rf2 {[%clk
00:00:43]} {[%emt 00:00:25]} 44. Re3 {[%clk 00:00:17]} {[%emt 00:00:02]} Rd2+
{[%clk 00:00:18]} {[%emt 00:00:30]} 45. Rd3 {[%clk 00:00:17]} {[%emt 00:00:05]}
Rf2 {[%clk 00:00:16]} {[%emt 00:00:07]} 46. Re3 {[%clk 00:00:21]} {[%emt
00:00:01]} Rd2+ {[%clk 00:00:20]} 47. Rd3 {[%clk 00:00:25]} {[%emt 00:00:01]}
Rf2 {[%clk 00:00:23]} {[%emt 00:00:02]} 48. Re3 Kxe5+ {[%emt 00:01:08]} 1/2-1/2